bitfinex-derivatives/quotes_ETHF0:USTF0_20250404
["timestamp","ask_amount","ask_price","bid_price","bid_amount"]
[1743808570538,4.9443,1814.2,1814.1,3.94659]
[1743808571132,3.512,1814.2,1814.1,3.94659]
[1743808571428,4.61483,1814.2,1814.1,3.94659]
[1743808571632,3.512,1814.2,1814.1,3.94659]
[1743808572039,2.125,1814.3,1814.2,1.10283]
[1743808572238,5.637,1814.3,1814.2,2.57343]
[1743808572437,6.73977,1814.3,1814.2,2.57343]
[1743808573127,5.637,1814.3,1814.2,2.57343]
[1743808573833,5.637,1814.3,1814.1,2.51086]
[1743808574033,7.4556,1814.3,1814.1,3.96116]
[1743808574537,7.45562,1814.3,1814.1,3.96117]
[1743808574730,1.10283,1814.2,1814.1,2.8583]
[1743808574935,1.10291,1814.1,1813.9,1.10296]
[1743808575131,1.84583,1814.1,1813.9,2.55326]
[1743808575437,1.4553,1814.0,1813.9,2.55326]
[1743808575843,4.9673,1814.0,1813.9,2.55326]
[1743808576547,6.07025,1814.0,1813.9,1.4503]
[1743808576736,6.82945,1814.0,1813.9,1.4503]
[1743808578047,1.10301,1813.9,1813.8,3.2078]
[1743808578348,2.61011,1813.9,1813.8,4.6651]
[1743808579345,1.10356,1813.0,1812.8,4.31148]
[1743808579641,3.2078,1813.1,1812.9,2.2038]
[1743808579848,3.21606811,1813.1,1813.0,1.5048]
[1743808580052,7.88356811,1813.1,1813.0,1.5048]
[1743808580240,1.10362,1812.9,1812.8,0.7412]
[1743808580442,1.5178,1813.0,1812.8,0.7412]
[1743808580738,2.62138,1813.0,1812.8,0.7412]
[1743808581352,1.10367,1812.9,1812.6,1.10378]
[1743808581641,3.566,1812.8,1812.7,1.5098]
[1743808582248,3.566,1812.8,1812.7,2.61354]
[1743808583247,3.566,1812.8,1812.7,1.5098]
[1743808583651,3.566,1812.8,1812.7,2.61354]
[1743808583840,3.566,1812.8,1812.7,1.5098]
[1743808585456,3.566,1812.8,1812.7,2.61354]
[1743808587248,3.21606811,1813.1,1812.9,1.10356]
[1743808587552,3.21606811,1813.1,1813.0,1.3967]
[1743808587753,3.21606811,1813.1,1813.0,4.00576]
[1743808587955,6.77906811,1813.1,1813.0,2.9022]
[1743808588250,3.57126811,1813.1,1813.0,4.00576]
[1743808588455,0.00826811,1813.1,1813.0,4.00576]
[1743808592051,1.10324,1813.6,1813.4,1.10329]
[1743808592259,1.10324,1813.6,1813.5,1.3992]
[1743808592458,6.16504,1813.6,1813.5,1.3992]
[1743808593159,6.16504,1813.6,1813.3,1.10333]
[1743808593160,1.10327,1813.5,1813.3,1.10333]
[1743808593359,6.16507,1813.5,1813.3,1.10333]
[1743808594257,6.16507,1813.5,1813.4,1.5204]
[1743808594559,5.0618,1813.5,1813.4,1.5204]
[1743808594860,6.16505,1813.5,1813.4,1.5204]
[1743808596060,5.0618,1813.5,1813.4,1.5204]
[1743808596251,6.16505,1813.5,1813.4,2.62371]
[1743808596452,6.16505,1813.5,1813.4,1.5204]
[1743808596652,5.0618,1813.5,1813.4,2.62371]
[1743808596947,5.0618,1813.5,1813.4,1.5204]
[1743808597153,6.16505,1813.5,1813.4,2.62371]
[1743808597352,5.0618,1813.5,1813.4,2.62371]
[1743808597554,6.16505,1813.5,1813.4,2.62371]
[1743808598353,5.0618,1813.5,1813.4,2.62371]
[1743808598555,6.16505,1813.5,1813.4,2.62371]
[1743808599558,5.0618,1813.5,1813.4,2.62371]
[1743808600261,6.16505,1813.5,1813.4,1.5204]
[1743808600757,5.80885,1813.5,1813.4,1.5204]
[1743808600958,9.36385,1813.5,1813.4,1.5204]
[1743808604563,9.36385,1813.5,1813.4,2.62371]
[1743808604765,6.15605,1813.5,1813.4,2.62371]
[1743808605061,5.0528,1813.5,1813.4,2.62371]
[1743808605262,6.15605,1813.5,1813.4,2.62371]
[1743808607863,5.0528,1813.5,1813.4,2.62371]
[1743808608866,6.15605,1813.5,1813.4,2.62371]
[1743808609067,5.0528,1813.5,1813.4,2.62371]
[1743808611156,6.15605,1813.5,1813.4,2.62371]
[1743808612165,5.0528,1813.5,1813.4,2.62371]
[1743808613773,6.15605,1813.5,1813.4,1.10331]
[1743808614875,6.15605,1813.5,1813.3,1.10335]
[1743808615069,3.0139,1813.4,1813.3,1.10335]
[1743808615269,4.11721,1813.4,1813.2,3.39178]
[1743808615472,1.4058,1813.3,1813.2,3.39178]
[1743808615780,1.4058,1813.3,1813.2,1.80610367]
[1743808616172,1.4058,1813.3,1813.2,3.33480367]
[1743808617170,1.4058,1813.3,1813.2,4.08938227]
[1743808617572,0.00826811,1813.7,1813.2,2.98600227]
[1743808617573,3.21606811,1813.7,1813.2,2.98600227]
[1743808617873,0.00826811,1813.7,1813.6,1.10319]
[1743808618077,3.55226811,1813.7,1813.6,1.10319]
[1743808618279,5.00066811,1813.7,1813.6,1.10319]
[1743808619377,3.55226811,1813.7,1813.6,1.10319]
[1743808620078,3.55126811,1813.7,1813.6,1.80687556]
[1743808622187,3.55126811,1813.7,1813.6,1.10319]
[1743808625677,3.55126811,1813.7,1813.6,1.85439]
[1743808631792,39.06186,1813.9,1813.6,1.85439]
[1743808631793,34.751,1813.9,1813.8,1.10307]
[1743808631994,3.535,1813.9,1813.8,1.10307]
[1743808632189,3.535,1813.9,1813.8,1.80584769]
[1743808632389,3.535,1813.9,1813.8,3.20714769]
[1743808633089,3.535,1813.9,1813.7,3.9676]
[1743808633090,4.63801,1813.9,1813.7,5.0707]
[1743808633390,4.9932,1813.9,1813.8,1.10307]
[1743808633591,4.9932,1813.9,1813.8,2.55467]
[1743808635092,3.535,1813.9,1813.8,2.55467]
[1743808636793,4.9653,1813.9,1813.8,1.10307]
[1743808637182,4.9653,1813.9,1813.8,3.31467]
[1743808637782,3.535,1813.9,1813.8,3.31467]
[1743808641283,3.535,1813.9,1813.8,4.01696619]
[1743808641894,3.535,1813.9,1813.8,3.31467]
[1743808643293,3.535,1813.9,1813.8,4.01695414]
[1743808643591,0.00826811,1814.0,1813.9,1.10301]
[1743808643783,0.00826811,1814.0,1813.9,7.96777021]
[1743808644189,0.00826811,1814.0,1813.9,4.75997021]
[1743808644392,0.00826811,1814.0,1813.9,4.00679414]
[1743808644593,0.00826811,1814.0,1813.9,7.21459414]
[1743808644894,0.00826811,1814.0,1813.9,7.96762485]
[1743808645395,0.00826811,1814.0,1813.9,7.21459414]
[1743808645796,0.00826811,1814.0,1813.9,7.96761357]
[1743808648700,0.00826811,1814.0,1813.9,7.96768923]
[1743808650591,0.00826811,1814.0,1813.9,7.96756734]
[1743808654300,0.00826811,1814.0,1813.9,7.96749084]
[1743808656697,4.2369,1814.4,1814.3,1.10277]
[1743808656898,5.7165,1814.4,1814.3,1.10277]
[1743808657095,2.1855,1814.4,1814.3,1.10277]
[1743808657290,1.4796,1814.4,1814.3,1.10277]
[1743808657497,1.4796,1814.4,1814.3,2.60417]
[1743808657691,1.4796,1814.4,1814.3,3.30592508]
[1743808658798,1.4796,1814.4,1814.3,6.51372508]
[1743808659497,1.4796,1814.4,1814.3,5.81197]
[1743808660896,35.49366811,1814.5,1814.4,1.10271]
[1743808661096,37.03306811,1814.5,1814.4,2.60381]
[1743808661600,37.03306811,1814.5,1814.4,3.33631]
[1743808665714,4.31036,1814.7,1814.4,3.33631]
[1743808665715,3.2078,1814.7,1814.6,1.10259]
[1743808666293,3.2078,1814.7,1814.6,2.58519]
[1743808666494,5.4423,1814.7,1814.6,2.58519]
[1743808666698,5.4423,1814.7,1814.5,1.10261]
[1743808666905,1.4528,1814.6,1814.5,1.10261]
[1743808671211,1.4528,1814.6,1814.5,2.52251]
[1743808672811,0.7301,1814.7,1814.6,1.10259]
[1743808673009,0.7301,1814.7,1814.6,3.34319]
[1743808673817,0.7301,1814.7,1814.6,2.59609]
[1743808674011,2.246,1814.7,1814.6,2.59609]
[1743808676606,2.246,1814.7,1814.5,1.10261]
[1743808676607,3.34855,1814.7,1814.5,1.10261]
[1743808676812,1.3861,1814.6,1814.5,1.10261]
[1743808682317,0.7301,1814.7,1814.6,1.10259]
[1743808682506,0.7301,1814.7,1814.6,3.21462905]
[1743808683506,2.2332,1814.7,1814.6,3.21462905]
[1743808684420,4.29816811,1814.8,1814.7,1.10252]
[1743808684618,4.29816811,1814.8,1814.7,2.51202]
[1743808685418,1.52796811,1814.8,1814.7,3.21493354]
[1743808686114,1.52796811,1814.8,1814.7,2.51202]
[1743808687517,1.52796811,1814.8,1814.7,3.21510477]
[1743808689415,2.63042811,1814.8,1814.7,3.21510477]
[1743808689815,1.52796811,1814.8,1814.7,3.21510477]
[1743808690019,2.63042811,1814.8,1814.7,3.21510477]
[1743808690419,1.52796811,1814.8,1814.7,3.21510477]
[1743808698716,1.52796811,1814.8,1814.7,3.93740477]
[1743808700723,2.63042811,1814.8,1814.7,0.70308477]
[1743808700913,1.10259,1814.6,1814.5,1.10262]
[1743808701117,7.31268,1814.7,1814.5,1.10262]
[1743808701318,1.5364,1814.6,1814.5,2.62522]
[1743808702022,1.11077811,1814.8,1814.6,1.10259]
[1743808702228,0.00826811,1814.8,1814.6,2.2413]
[1743808702526,2.64716811,1814.8,1814.7,2.62512]
[1743808703128,2.64716811,1814.8,1814.7,1.5226]
[1743808704327,1.11076811,1814.8,1814.7,1.5226]
[1743808704721,0.00826811,1814.8,1814.7,2.62512]
[1743808704926,0.00826811,1814.8,1814.7,4.04609484]
[1743808706117,1.11072811,1814.8,1814.7,2.94357484]
[1743808706720,1.11072811,1814.8,1814.7,4.04609484]
[1743808706920,1.11072811,1814.8,1814.7,3.34272]
[1743808707127,0.00826811,1814.8,1814.7,3.34272]
[1743808707629,0.00826811,1814.8,1814.7,4.04613332]
[1743808708229,1.11072811,1814.8,1814.7,2.94361332]
[1743808709127,1.11072811,1814.8,1814.7,2.2402]
[1743808709518,0.00826811,1814.8,1814.7,3.34272]
[1743808710925,0.00826811,1814.8,1814.7,4.04622347]
[1743808711632,0.00826811,1814.8,1814.7,4.80071558]
[1743808711820,0.00826811,1814.8,1814.7,4.04622347]
[1743808712634,0.00826811,1814.8,1814.7,4.8008371]
[1743808712831,0.00826811,1814.8,1814.7,4.04622347]
[1743808713131,0.00826811,1814.8,1814.7,4.80083671]
[1743808713331,0.00826811,1814.8,1814.7,4.04622347]
[1743808713931,0.00826811,1814.8,1814.7,4.80083211]
[1743808714234,1.10224,1815.2,1814.7,3.69831211]
[1743808714430,3.513,1815.1,1815.0,1.10232]
[1743808715031,3.513,1815.1,1815.0,2.51342]
[1743808715929,3.513,1815.1,1815.0,3.21674043]
[1743808716525,3.96659811,1815.2,1815.0,2.11442043]
[1743808716726,3.52126811,1815.2,1815.1,2.52868]
[1743808717030,4.62348811,1815.2,1815.1,3.23200043]
[1743808717230,3.52126811,1815.2,1815.1,3.23200043]
[1743808717735,3.52126811,1815.2,1815.1,2.52868]
[1743808719237,0.00826811,1815.2,1815.1,2.52868]
[1743808719436,0.00826811,1815.2,1815.1,3.2309294]
[1743808720732,0.00826811,1815.2,1815.1,2.52868]
[1743808722739,0.00826811,1815.2,1815.1,2.52868]
[1743808725541,1.11048811,1815.2,1815.1,2.52868]
[1743808725741,0.00826811,1815.2,1815.1,2.52868]
[1743808725939,1.42486811,1815.2,1815.1,2.52868]
[1743808726238,2.13886811,1815.2,1815.1,2.52868]
[1743808727139,0.00826811,1815.2,1815.1,2.52868]
[1743808728535,1.40716811,1815.2,1815.1,2.52868]
[1743808729842,1.40716811,1815.2,1815.1,1.4264]
[1743808730141,1.40716811,1815.2,1815.1,2.52868]
[1743808731843,2.14806811,1815.2,1815.1,2.52868]
[1743808733538,3.25033811,1815.2,1815.0,2.51343]
[1743808733744,1.10228,1815.1,1815.0,1.10233]
[1743808733943,3.31638,1815.1,1815.0,1.10233]
[1743808734647,2.2141,1815.1,1815.0,1.10233]
[1743808735041,2.2141,1815.1,1815.0,1.85573]
[1743808736149,2.2141,1815.1,1814.9,2.62436]
[1743808736150,6.82838,1815.1,1814.9,2.62436]
[1743808736356,1.4543,1815.0,1814.9,2.62436]
[1743808736552,1.4543,1815.0,1814.9,3.32624751]
[1743808737260,1.4543,1815.0,1814.9,3.32632015]
[1743808737855,4.2718,1815.1,1815.0,1.10234]
[1743808738055,5.7708,1815.1,1815.0,2.63474]
[1743808738258,6.87308,1815.1,1815.0,1.5324]
[1743808738452,5.7708,1815.1,1815.0,2.63474]
[1743808739451,3.512,1815.1,1815.0,2.63474]
[1743808739755,3.512,1815.1,1815.0,3.33702247]
[1743808740758,4.9352,1815.1,1815.0,3.33702247]
[1743808743059,4.9352,1815.1,1815.0,4.09104467]
[1743808743261,4.9352,1815.1,1815.0,4.0910648]
[1743808743460,3.512,1815.1,1815.0,4.0910648]
[1743808744056,3.512,1815.1,1815.0,4.09105519]
[1743808747162,3.512,1815.1,1815.0,4.0916484]
[1743808747657,4.61428,1815.1,1815.0,1.4569084]
[1743808747862,6.85908,1815.1,1815.0,0.70228247]
[1743808748961,6.85908,1815.1,1815.0,1.80462247]
[1743808748962,5.7568,1815.1,1815.0,1.80462247]
[1743808749762,4.2704,1815.1,1815.0,2.55914352]
[1743808749963,4.2704,1815.1,1815.0,4.01694352]
[1743808749964,3.512,1815.1,1815.0,4.01694352]
[1743808751858,3.512,1815.1,1815.0,1.45680352]
[1743808752059,5.6988,1815.1,1815.0,1.45680352]
[1743808752259,5.6988,1815.1,1815.0,2.55914352]
[1743808753065,5.6988,1815.1,1815.0,2.21350352]
[1743808753367,5.6988,1815.1,1815.0,3.31592209]
[1743808754059,5.6988,1815.1,1815.0,2.21358209]
[1743808754260,5.6988,1815.1,1815.0,1.45688209]
[1743808755168,5.6988,1815.1,1815.0,1.4569256]
[1743808755566,5.6988,1815.1,1815.0,2.5592656]
[1743808756966,5.6988,1815.1,1815.0,1.80462247]
[1743808757162,5.6988,1815.1,1815.0,2.55926259]
[1743808757562,5.6988,1815.1,1815.0,1.45692259]
[1743808757763,5.6988,1815.1,1815.0,2.87462259]
[1743808758365,5.6988,1815.1,1815.0,3.97696259]
[1743808760870,3.512,1815.1,1815.0,3.97696259]
[1743808762569,0.00826811,1815.2,1815.1,1.10228]
[1743808762870,3.52026811,1815.2,1815.1,4.11528]
[1743808763267,3.52026811,1815.2,1815.1,4.81756247]
[1743808764363,3.52026811,1815.2,1815.1,5.5723322]
[1743808766468,3.52026811,1815.2,1815.1,5.57224081]
[1743808769977,0.00826811,1815.2,1815.1,5.57224081]
[1743808771979,0.00826811,1815.2,1815.1,5.57214139]
[1743808775476,0.00826811,1815.2,1815.1,4.86969343]
[1743808775675,0.00826811,1815.2,1815.1,5.57266262]
[1743808775879,0.00826811,1815.2,1815.1,5.57266133]
[1743808777379,0.00826811,1815.2,1815.1,4.81868447]
[1743808777591,0.00826811,1815.2,1815.1,5.57238918]
[1743808777778,0.00826811,1815.2,1815.1,8.78018918]
[1743808779286,0.00826811,1815.2,1815.1,8.78013866]
[1743808781188,0.00826811,1815.2,1815.1,8.78004548]
[1743808782683,0.00826811,1815.2,1815.1,8.77990609]
[1743808783086,0.00826811,1815.2,1815.1,8.77990474]
[1743808786889,0.00826811,1815.2,1815.1,8.77983647]
[1743808788889,0.00826811,1815.2,1815.1,8.77986518]
[1743808789292,0.00826811,1815.2,1815.1,5.57206518]
[1743808789492,0.00826811,1815.2,1815.1,8.77986518]
[1743808790186,2.1117,1815.5,1815.1,8.77986518]
[1743808790187,4.9004,1815.5,1815.4,1.1021]
[1743808790392,2.49144,1815.5,1815.4,0.70340447]
[1743808790592,3.20134,1815.5,1815.4,0.70340447]
[1743808790987,3.20134,1815.5,1815.3,3.29275]
[1743808792189,1.1021,1815.4,1815.3,1.4569]
[1743808792492,2.563,1815.4,1815.2,1.11044811]
[1743808792991,2.9015,1815.3,1815.2,1.11044811]
[1743808793892,2.9015,1815.3,1815.2,1.81305462]
[1743808794286,2.9015,1815.3,1815.2,2.56660797]
[1743808794589,2.9015,1815.3,1815.2,3.20165462]
[1743808795193,2.9015,1815.3,1815.2,3.95527077]
[1743808795385,2.9015,1815.3,1815.2,3.20165462]
[1743808795792,2.9015,1815.3,1815.2,3.95533021]
[1743808796192,2.9015,1815.3,1815.2,3.20165462]
[1743808796393,2.9015,1815.3,1815.2,3.95532725]
[1743808796586,2.9015,1815.3,1815.2,3.9553825]
[1743808796995,2.9015,1815.3,1815.2,3.95538184]
[1743808797189,2.9015,1815.3,1815.2,3.20165462]
[1743808797489,2.9015,1815.3,1815.2,3.9553825]
[1743808800189,2.9015,1815.3,1815.2,3.95556111]
[1743808801297,2.9015,1815.3,1815.2,3.95563314]
[1743808803099,2.9015,1815.3,1815.2,3.95584702]
[1743808804386,7.51466,1815.3,1815.2,1.46506702]
[1743808804595,7.51466,1815.3,1814.7,3.2078]
[1743808804596,1.10243,1814.9,1814.7,3.2078]
[1743808804798,1.10239,1815.0,1814.8,1.85697864]
[1743808805097,2.9821,1814.9,1814.8,1.10246]
[1743808805297,2.9821,1814.9,1814.8,1.85699606]
[1743808805889,2.9821,1814.9,1814.8,0.75453606]
[1743808806098,4.0845,1814.9,1814.8,0.75453606]
[1743808806404,2.9821,1814.9,1814.7,5.79426811]
[1743808806592,4.08451,1814.9,1814.7,4.69176811]
[1743808806899,1.4419,1814.8,1814.7,5.79426811]
[1743808807198,1.4419,1814.8,1814.7,6.5479112]
[1743808809602,1.4419,1814.8,1814.7,5.79426811]
[1743808810004,1.4419,1814.8,1814.7,6.54716673]
[1743808810701,1.4419,1814.8,1814.7,5.79426811]
[1743808812804,1.4419,1814.8,1814.7,2.58646811]
[1743808819509,2.54436,1814.8,1814.7,1.48396811]
[1743808819711,1.4419,1814.8,1814.7,2.58648811]
[1743808819911,2.54436,1814.8,1814.7,1.48396811]
[1743808820308,1.4419,1814.8,1814.7,1.48396811]
[1743808821214,2.54436,1814.8,1814.7,0.00826811]
[1743808822307,1.4419,1814.8,1814.7,0.00826811]
[1743808822505,2.54436,1814.8,1814.7,0.00826811]
[1743808823207,1.4419,1814.8,1814.7,0.00826811]
[1743808823408,2.54436,1814.8,1814.7,0.00826811]
[1743808828908,1.10265,1814.5,1814.4,1.433]
[1743808829209,4.61365,1814.5,1814.4,1.433]
[1743808829515,4.6137,1814.5,1814.3,1.82155]
[1743808829708,1.3898,1814.4,1814.3,3.25455]
[1743808831308,1.3898,1814.4,1814.3,2.1518]
[1743808831510,1.3898,1814.4,1814.3,3.25457]
[1743808832212,3.51926811,1814.5,1814.3,3.25457]
[1743808832412,4.62191811,1814.5,1814.4,1.4032]
[1743808833916,1.10277,1814.3,1813.9,3.2078]
[1743808834109,1.10319,1813.6,1813.0,11.85023819]
[1743808834308,1.10344,1813.2,1813.1,3.64920586]
[1743808834527,4.63244,1813.2,1813.1,1.393]
[1743808837007,7.84024,1813.2,1813.1,1.393]
[1743808837208,4.63244,1813.2,1813.1,1.393]
[1743808838012,3.529,1813.2,1813.1,1.393]
[1743808838916,3.529,1813.2,1813.1,5.7043]
[1743808839120,3.529,1813.2,1813.0,0.00826811]
[1743808839313,5.0504,1813.2,1813.0,0.00826811]
[1743808839619,6.15389,1813.2,1813.0,0.00826811]
[1743808839820,6.15386,1813.2,1813.0,1.41896811]
[1743808840421,5.0504,1813.2,1813.0,1.41896811]
[1743808841114,1.1035,1813.1,1813.0,1.41896811]
[1743808841410,6.15389,1813.2,1813.0,1.41896811]
[1743808841617,1.4747,1813.1,1813.0,1.41896811]
[1743808841817,2.5782,1813.1,1813.0,1.41896811]
[1743808842121,1.4747,1813.1,1813.0,1.41896811]
[1743808842918,2.5782,1813.1,1813.0,0.00826811]
[1743808843816,1.4747,1813.1,1813.0,0.00826811]
[1743808844017,2.5782,1813.1,1813.0,0.00826811]
[1743808848220,2.75915,1812.9,1812.1,3.2078]
[1743808848418,1.10392,1812.4,1812.3,1.4616]
[1743808848612,4.65592,1812.4,1812.3,1.4616]
[1743808848818,6.11052,1812.4,1812.3,1.4616]
[1743808849117,1.10405,1812.2,1812.1,3.2078]
[1743808849924,1.10411,1812.1,1812.0,0.00826811]
[1743808850126,4.66611,1812.1,1812.0,0.00826811]
[1743808850332,9.42731,1812.1,1812.0,0.00826811]
[1743808850520,10.12711,1812.1,1812.0,0.00826811]
[1743808850721,44.89111,1812.1,1812.0,0.00826811]
[1743808851825,1.10429,1811.8,1811.7,1.4102]
[1743808852125,4.68429,1811.8,1811.7,1.4102]
[1743808852632,6.10979,1811.8,1811.7,1.4102]
[1743808852826,5.0055,1811.8,1811.7,1.4102]
[1743808853028,6.10983,1811.8,1811.5,1.10445]
[1743808853229,3.2078,1811.7,1811.5,1.11271811]
[1743808853523,3.58,1811.8,1811.6,1.4374]
[1743808853724,3.579,1811.7,1811.6,1.4374]
[1743808854429,3.579,1811.7,1811.6,2.54181]
[1743808854623,3.579,1811.7,1811.6,3.29261]
[1743808854823,3.579,1811.7,1811.6,2.1882]
[1743808855731,3.579,1811.7,1811.6,3.29261]
[1743808856326,3.2078,1811.9,1811.6,3.29261]
[1743808856522,3.576,1811.8,1811.7,2.60775]
[1743808856725,3.576,1811.8,1811.7,2.2618]
[1743808857730,3.2078,1811.9,1811.7,2.2618]
[1743808858230,3.575,1811.8,1811.7,2.2618]
[1743808859628,3.575,1811.8,1811.7,3.36615]
[1743808860331,37.9718,1812.1,1811.7,2.2618]
[1743808860630,3.573,1812.0,1811.8,1.10426]
[1743808860830,3.573,1812.0,1811.9,1.4716]
[1743808861827,3.573,1812.0,1811.9,2.57583]
[1743808862034,3.573,1812.0,1811.9,1.4716]
[1743808864634,3.573,1812.0,1811.9,2.57583]
[1743808865233,3.573,1812.0,1811.9,1.4716]
[1743808866234,4.67717,1812.0,1811.9,1.4716]
[1743808866423,3.573,1812.0,1811.9,2.57583]
[1743808866629,3.573,1812.0,1811.9,1.4716]
[1743808867134,4.67717,1812.0,1811.9,1.4716]
[1743808867330,3.573,1812.0,1811.9,1.4716]
[1743808868335,3.573,1812.0,1811.9,2.57583]
[1743808868637,3.573,1812.0,1811.9,1.4716]
[1743808868934,3.573,1812.0,1811.9,2.57583]
[1743808871241,3.573,1812.0,1811.9,1.4716]
[1743808871539,3.573,1812.0,1811.9,2.57583]
[1743808872142,3.573,1812.0,1811.9,1.4716]
[1743808872840,1.10433,1811.8,1811.6,0.7508]
[1743808873043,1.10433,1811.8,1811.6,1.8552]
[1743808873237,6.10935,1811.7,1811.6,0.7508]
[1743808873444,6.10935,1811.7,1811.6,2.1677]
[1743808873445,5.005,1811.7,1811.6,2.1677]
[1743808873635,6.10937,1811.7,1811.5,1.11270811]
[1743808873835,1.3986,1811.6,1811.5,2.63540811]
[1743808874142,3.568,1811.7,1811.5,2.63540811]
[1743808874143,3.568,1811.7,1811.6,1.10441]
[1743808874343,3.568,1811.7,1811.6,2.62711]
[1743808875843,3.568,1811.7,1811.6,3.32151]
[1743808876048,3.568,1811.7,1811.6,4.05517981]
[1743808876235,3.568,1811.7,1811.6,3.32151]
[1743808876547,3.568,1811.7,1811.6,4.05595622]
[1743808876946,3.568,1811.7,1811.6,4.05599802]
[1743808877848,1.4212,1811.8,1811.6,2.95158802]
[1743808877849,2.52549,1811.8,1811.6,2.95158802]
[1743808878046,2.52553,1811.8,1811.6,3.32151]
[1743808878244,1.4212,1811.7,1811.6,3.32151]
[1743808878444,1.4212,1811.7,1811.6,4.0576501]
[1743808879243,1.4212,1811.7,1811.6,2.9532401]
[1743808879642,1.4212,1811.7,1811.6,2.95345575]
[1743808880444,2.52555,1811.7,1811.6,2.95345575]
[1743808881048,2.52555,1811.7,1811.6,0.73635575]
[1743808881854,2.52555,1811.7,1811.5,0.00826811]
[1743808882147,5.0177,1811.6,1811.5,0.00826811]
[1743808882354,6.12211,1811.6,1811.5,2.28128725]
[1743808882551,5.0177,1811.6,1811.5,2.28128725]
[1743808882749,5.0177,1811.6,1811.5,3.38575725]
[1743808882950,3.565,1811.6,1811.5,3.38575725]
[1743808884260,3.565,1811.6,1811.5,3.38585333]
[1743808885954,3.565,1811.6,1811.5,2.28138333]
[1743808886155,3.565,1811.6,1811.5,3.38585931]
[1743808886352,5.0917,1811.6,1811.5,3.38585931]
[1743808887556,5.0917,1811.6,1811.5,0.00826811]
[1743808887758,8.69611,1811.6,1811.5,0.00826811]
[1743808890256,1.10491,1810.8,1810.6,1.10499]
[1743808890551,35.90063,1811.3,1811.1,1.10472]
[1743808890757,3.6,1811.2,1811.1,1.10472]
[1743808890957,5.1107,1811.2,1811.1,1.10472]
[1743808891360,3.6,1811.2,1811.1,2.55252]
[1743808891660,3.6,1811.2,1811.1,5.76032]
[1743808891862,0.00826811,1811.3,1811.2,1.10465]
[1743808892058,0.00826811,1811.3,1811.2,2.55405]
[1743808893159,0.00826811,1811.3,1811.2,1.4494]
[1743808893358,0.00826811,1811.3,1811.2,2.55405]
[1743808895266,0.00826811,1811.3,1811.2,1.10465]
[1743808895464,0.00826811,1811.3,1811.2,2.60365]
[1743808914274,6.85267,1811.7,1811.5,1.10446]
[1743808914871,1.10441,1811.6,1811.4,1.82619]
[1743808915066,2.54321,1811.6,1811.5,1.483]
[1743808917276,1.4388,1811.6,1811.5,1.483]
[1743808917480,2.54321,1811.6,1811.5,1.483]
[1743808918870,1.4388,1811.6,1811.5,1.483]
[1743808919076,2.54321,1811.6,1811.5,1.483]
[1743808919669,2.54321,1811.6,1811.5,2.58747]
[1743808919867,2.54321,1811.6,1811.5,1.483]
[1743808920070,2.54321,1811.6,1811.5,2.58747]
[1743808920273,1.4388,1811.6,1811.5,2.58747]
[1743808920777,3.57926811,1811.7,1811.6,1.10441]
[1743808920966,4.68361811,1811.7,1811.6,1.4365]
[1743808921169,1.54056811,1811.7,1811.6,2.54091]
[1743808921366,0.7423,1811.9,1811.8,1.10429]
[1743808921775,5.495,1812.0,1811.9,1.10423]
[1743808921974,4.7401,1812.0,1811.9,1.10423]
[1743808922374,1.5323,1812.0,1811.9,5.74853]
[1743808922575,35.5195,1812.1,1812.0,1.10417]
[1743808922779,0.00826811,1812.1,1812.0,3.34907]
[1743808926079,0.00826811,1812.1,1811.8,0.719]
[1743808926274,1.81051811,1812.1,1811.8,1.10428]
[1743808926474,2.16156811,1812.1,1811.9,1.10421]
[1743808926674,1.4552,1812.0,1811.9,1.10421]
[1743808926877,1.4552,1812.0,1811.9,2.52711]
[1743808932079,0.00826811,1812.1,1812.0,1.10417]
[1743808932385,0.00826811,1812.1,1812.0,3.29517]
[1743808937993,1.45536811,1812.1,1812.0,3.29517]
[1743808938489,1.45536811,1812.1,1812.0,1.10417]
[1743808940691,0.00826811,1812.1,1812.0,1.10417]
[1743808942486,0.00826811,1812.1,1812.0,2.57157]
[1743808946396,1.4459,1812.4,1812.3,1.10398]
[1743808947094,1.4459,1812.4,1812.2,1.104]
[1743808947292,1.4459,1812.4,1812.2,2.5879]
[1743808950193,1.1042,1812.0,1811.8,3.2078]
[1743808950401,1.3939,1811.9,1811.8,4.31208]
[1743808950800,1.3939,1811.9,1811.8,1.10428]
[1743808952104,1.3939,1811.9,1811.8,1.86968]
[1743808954004,1.4962,1812.0,1811.9,1.10423]
[1743808954202,1.4962,1812.0,1811.9,2.62813]
[1743808954403,0.7439,1812.0,1811.9,2.62813]
[1743808955600,4.6095,1812.1,1811.9,2.62808]
[1743808955798,5.377,1812.1,1812.0,1.5239]
[1743808956201,2.1692,1812.1,1812.0,1.5239]
[1743808956604,2.1692,1812.1,1812.0,2.62807]
[1743808956800,2.9316,1812.1,1812.0,2.62807]
[1743808956998,2.1692,1812.1,1812.0,2.62807]
[1743808957300,3.555,1812.2,1812.0,2.62807]
[1743808957503,3.555,1812.2,1812.1,2.1875]
[1743808957699,5.0185,1812.2,1812.1,2.1875]
[1743808957898,3.2078,1812.3,1812.1,2.1875]
[1743808958202,2.9934,1812.4,1812.2,2.53695]
[1743808958393,2.9934,1812.4,1812.3,2.53688]
[1743808958796,2.231,1812.4,1812.3,2.53688]
[1743808959502,3.21606811,1812.5,1812.4,1.10392]
[1743808959703,4.67526811,1812.5,1812.4,2.52282]
[1743808960499,5.77912811,1812.5,1812.4,2.52282]
[1743808961095,5.77912811,1812.5,1812.4,1.4189]
[1743808961798,5.77912811,1812.5,1812.4,2.52282]
[1743808961999,4.67526811,1812.5,1812.4,2.52282]
[1743808963708,5.77912811,1812.5,1812.4,2.52282]